Cogmind - Beta 14 @@@ ROGUE MODE // 2024.10.22 @ 21:47:16 Player: Jay Result: Self-destructed Performance ------------- Evolutions (4) 2000 Regions Visited (8) 1600 Robots Destroyed (78) 390 Value Destroyed (2273) 2273 Prototype IDs (0) 0 Alien Tech Used (0) 0 Bonus (13) 13 TOTAL SCORE: 6276 Bonus ------- High Alert Combat Kills 13 Cogmind --------- Core Integrity 500/850 Matter 300/300 Energy 2/100 System Corruption 0% Temperature Cool (0) Movement Walking (190) Ox1 Location -6/Lower Caves Parts ------- > --- POWER (2) -------- (None) > --- PROPULSION (3) --- Aluminum Leg Carbon-fiber Leg Flexi-carbon Leg > --- UTILITY (7) ------ Coolant Injector High-capacity Storage Unit Terrain Scanner Targeting Computer Transmission Jammer Improved Reaction Control System Dynamic Insulation System > --- WEAPON (3) ------- Proton Cannon Heavy Plasma Cannon > --- INVENTORY (20) --- Force Field Thermic Laser Peak State ------------ > --- POWER ------------ Light Ion Engine > --- PROPULSION ------- Aluminum Leg Carbon-fiber Leg Flexi-carbon Leg > --- UTILITY ---------- Coolant Injector High-capacity Storage Unit Terrain Scanner Targeting Computer Transmission Jammer Improved Reaction Control System Dynamic Insulation System > --- WEAPON ----------- Particle Gun Proton Cannon Heavy Plasma Cannon > --- INVENTORY -------- Force Field Thermic Laser [Rating: 43] Favorites ----------- Power Deuterium Engine Engine Deuterium Engine Power Core Light Nuclear Core Propulsion Aluminum Leg Treads Light Treads Leg Aluminum Leg Utility Targeting Computer Device Transmission Jammer Storage Small Storage Unit Processor Targeting Computer Protection Improved Weapon Shielding Weapon Particle Gun Energy Gun Particle Gun Energy Cannon Proton Cannon Ballistic Gun Light Assault Rifle Ballistic Cannon Improved Light Cannon Slashing Weapon Katana Build | -11 -10 -10 -9 -9 -8 -7 -6 -6 ------- Run | Yrd Mat Min Mat Min Mat Fac Fac Low Slots Evolved 8 | . . . 2 . 2 2 2 . Power 1 | . . . . . . 1 . . Propulsion 1 | . . . . . . . 1 . Utility 5 | . . . 2 . 1 1 1 . Weapon 1 | . . . . . 1 . . . Parts Attached 85 | 7 . . 31 5 12 18 12 . Power 15 | 1 . . 6 1 2 3 2 . Engine 14 | 1 . . 6 1 2 3 1 . Core 1 | . . . . . . . 1 . Reactor . | . . . . . . . . . Propulsion 21 | 2 . . 7 2 2 4 4 . Treads 2 | 2 . . . . . . . . Leg 19 | . . . 7 2 2 4 4 . Wheel . | . . . . . . . . . Hover . | . . . . . . . . . Flight . | . . . . . . . . . Utility 28 | 2 . . 12 . 5 5 4 . Device 21 | 1 . . 9 . 4 4 3 . Storage 4 | 1 . . 2 . . . 1 . Processor 1 | . . . . . 1 . . . Hackware . | . . . . . . . . . Protection 2 | . . . 1 . . 1 . . Artifact . | . . . . . . . . . Weapon 21 | 2 . . 6 2 3 6 2 . Energy Gun 7 | 1 . . 2 1 1 2 . . Energy Cannon 3 | . . . . . 1 . 2 . Ballistic Gun 8 | 1 . . 3 1 1 2 . . Ballistic Cannon 2 | . . . . . . 2 . . Launcher . | . . . . . . . . . Special Weapon . | . . . . . . . . . Impact Weapon . | . . . . . . . . . Slashing Weapon 1 | . . . 1 . . . . . Piercing Weapon . | . . . . . . . . . Special Melee Weapon . | . . . . . . . . . Unidentified Prototypes . | . . . . . . . . . Parts Lost 40 | . . . 16 2 5 4 11 2 Power 8 | . . . 3 1 . . 3 1 Propulsion 7 | . . . 3 . 1 . 3 . Utility 16 | . . . 7 . 3 3 3 . Weapon 9 | . . . 3 1 1 1 2 1 Highest Loss Streak 11 | . . . 5 2 2 2 11 2 To Critical Strikes . | . . . . . . . . . Average Slot Usage (%) 91 | . 100 100 94 97 98 92 75 92 Engine 9 | . 14 14 9 9 9 14 3 5 Treads 2 | . 28 28 5 . . . . . Leg 16 | . . . 15 22 17 13 18 20 Device 24 | . 14 14 18 22 22 27 28 33 Storage 10 | . 14 14 18 22 15 1 2 6 Processor 3 | . . . . . 5 7 6 6 Protection 2 | . . . 4 . . 3 1 . Energy Gun 7 | . 14 14 8 9 10 4 7 5 Energy Cannon 3 | . . . . . 2 2 3 13 Ballistic Gun 8 | . 14 14 13 11 13 7 . . Ballistic Cannon 1 | . . . . . . 6 1 . Peak Build Rating 43 | 9 9 9 15 10 22 33 42 43 Average Rating 22 | 4 9 9 11 9 17 29 31 41 On Entrance 141 | . 9 9 9 10 10 22 30 42 Naked Turns . | . . . . . . . . . Heaviest Build 71 | 13 13 13 25 16 27 38 71 71 Greatest Support 45 | 40 40 40 40 20 20 20 45 45 Greatest Overweight (x) 4 | 3 . . 2 . 1 3 4 1 Average Overweight (x) . | . . . . . . 1 . 1 Largest Inventory Capacity 20 | 8 8 8 8 8 8 8 20 20 Average Capacity 9 | 7 8 8 8 8 8 5 10 20 Most Carried 8 | 5 4 4 8 7 8 8 3 2 Average Carried 4 | 2 3 4 6 5 7 4 1 1 Final Capacity 20 | 8 8 8 8 8 8 5 20 20 Final Carried 8 | 3 4 4 4 7 8 4 1 2 Class Distribution -------------------- 35% | Scavenger-Mutant 34% | Scavenger-Gunner 14% | Mutant 7% | Scavenger-Skirmisher 4% | Gunner 3% | Scavenger-Tank Dominant Class ---------------- Mutant | -10/Materials Mutant | -10/Mines Scavenger-Mutant | -9/Materials Scavenger-Mutant | -9/Mines Scavenger-Gunner | -8/Materials Scavenger-Gunner | -7/Factory Scavenger-Mutant | -6/Factory Scavenger-Gunner | -6/Lower Caves Resources | -11 -10 -10 -9 -9 -8 -7 -6 -6 ----------- Run | Yrd Mat Min Mat Min Mat Fac Fac Low Matter Collected 1739 | 267 . . 665 78 171 359 168 31 Remotely 143 | . . . 143 . . . . . Salvage Created 2924 | 26 . 35 1316 139 578 611 182 37 Parts 155 | 3 . 2 77 10 27 26 8 2 Haulers Intercepted . | . . . . . . . . . Recyclers Shooed 1 | . . . 1 . . . . . Parts Field Recycled . | . . . . . . . . . Retrieved Matter . | . . . . . . . . . Parts Self-Destructed . | . . . . . . . . . Prevented . | . . . . . . . . . Kills | -11 -10 -10 -9 -9 -8 -7 -6 -6 ------- Run | Yrd Mat Min Mat Min Mat Fac Fac Low Combat Hostiles Destroyed 56 | . . 1 26 4 10 11 3 1 Guns 44 | . . 1 25 4 10 1 3 . Cannons 11 | . . . . . . 10 . 1 Classes Destroyed 12 | 1 . 1 8 . . 1 1 . Worker 5 | . . . 4 1 . . . . Builder 3 | . . . . . . . 3 . Tunneler 5 | 2 . . 1 . 1 1 . . Recycler 3 | . . . 2 . . 1 . . Operator 3 | . . . 2 . 1 . . . Watcher 3 | . . . 1 . 1 1 . . Swarmer 12 | . . . 8 2 . 1 . 1 Grunt 30 | . . 1 12 1 7 7 2 . Brawler 1 | . . . 1 . . . . . Duelist 4 | . . . 1 1 . 1 1 . Sentry 8 | . . . 4 . 3 1 . . Programmer 1 | . . . . . . 1 . . Decomposer 1 | . . . . . . . . 1 Best Kill Streak 6 | 2 . 1 6 3 3 4 2 1 Combat Bots Only 5 | . . 1 5 3 2 3 2 1 Max Kills in Single Turn 2 | 1 . 1 2 1 1 2 1 1 Gunslinging . | . . . . . . . . . Exploded . | . . . . . . . . . Melee . | . . . . . . . . . Uniques/NPCs Destroyed . | . . . . . . . . . Combat | -11 -10 -10 -9 -9 -8 -7 -6 -6 -------- Run | Yrd Mat Min Mat Min Mat Fac Fac Low Hostile Shots Fired 504 | . . 16 179 56 49 123 43 38 Missed 132 | . . 5 41 14 18 38 5 11 Damage Taken 5239 | . . 129 1832 394 538 1129 800 417 Core 888 | . . 20 193 135 38 152 194 156 Absorbed by Shields 56 | . . . 22 . 34 . . . Redirected to Shielding 100 | . . . . . . 87 13 . Regen/Repaired (Parts) 217 | . . . 13 . . 204 . . Core Remaining (%) 76 | 100 . 92 . 18 93 78 . . Volleys Fired 255 | 6 . 8 119 16 41 40 23 2 Largest 3 | 2 . 2 2 2 3 3 3 3 Hottest 230 | 60 . 60 76 85 130 127 169 230 Shots Fired 560 | 12 . 16 221 26 117 111 51 6 Gun 479 | 12 . 16 221 26 112 55 35 2 Cannon 81 | . . . . . 5 56 16 4 Launcher . | . . . . . . . . . Special . | . . . . . . . . . Kinetic 319 | 6 . 8 131 17 67 80 10 . Thermal 220 | 6 . 8 90 9 37 31 35 4 Explosive . | . . . . . . . . . Electromagnetic 21 | . . . . . 13 . 6 2 Robot Hit Streak 41 | 7 . 5 9 10 16 6 41 1 Robot Miss Streak 10 | 2 . 4 10 4 3 4 1 2 Penetration Max . | . . . . . . . . . Secondary Targets 5 | . . 1 3 . 1 . . . Max Gunslinging Chain 1 | . . 1 1 . 1 . . . Shots Hit Robots 360 | 10 . 9 139 15 79 62 44 2 Core Hits 143 | 3 . 3 55 9 35 26 11 1 Critical Kills 1 | . . . 1 . . . . . Critical Parts Destroyed 1 | . . . 1 . . . . . Critical Strikes 16 | . . . 7 . 1 5 3 . Burn 9 | . . . 4 . 1 1 3 . Destroy 2 | . . . 2 . . . . . Blast 4 | . . . . . . 4 . . Sever 1 | . . . 1 . . . . . Melee Attacks 1 | . . . 1 . . . . . Impact . | . . . . . . . . . Slashing 1 | . . . 1 . . . . . Piercing . | . . . . . . . . . Sneak Attacks . | . . . . . . . . . Combat Hostiles . | . . . . . . . . . Follow-up Attacks . | . . . . . . . . . Damage Inflicted 5212 | 98 . 91 1721 202 1009 1204 822 65 Guns 3769 | 98 . 91 1686 202 830 340 522 . Cannons 1298 | . . . . . 69 864 300 65 Explosions 110 | . . . . . 110 . . . Melee 35 | . . . 35 . . . . . Ramming . | . . . . . . . . . Kinetic 2402 | 41 . 34 948 70 338 802 169 . Thermal 2460 | 57 . 57 738 132 520 402 522 32 Explosive . | . . . . . . . . . Electromagnetic 315 | . . . . . 151 . 131 33 Impact . | . . . . . . . . . Slashing 35 | . . . 35 . . . . . Piercing . | . . . . . . . . . Highest Corruption 6 | . . . 6 6 . 1 . . Average Corruption 3 | . . . 3 6 . 1 . . Corruption Purged . | . . . . . . . . . Corruption Blocked . | . . . . . . . . . Effects 19 | . . . 10 4 . 5 . . Message Errors 3 | . . . 1 . . 2 . . Matter Fused 6 | . . . 4 2 . . . . Heat Flow Errors 3 | . . . 1 1 . 1 . . Parts Rejected 1 | . . . 1 . . . . . Data Loss (minor) 4 | . . . 2 1 . 1 . . Misfires 1 | . . . . . . 1 . . Alerts 1 | . . . 1 . . . . . Overload Shots . | . . . . . . . . . Overflow Damage 28 | . . . . . 8 . 7 13 Projectiles 20 | . . . . . . . 7 13 Explosions 8 | . . . . . 8 . . . Melee . | . . . . . . . . . Knockbacks 11 | . . . . . . 8 3 . Impact . | . . . . . . . . . Kinetic 8 | . . . . . . 6 2 . Secondary 3 | . . . . . . 2 1 . Self-Inflicted Damage 85 | . . . . . 85 . . . Shots 2 | . . . . . 2 . . . Rammed . | . . . . . . . . . Targets Rammed . | . . . . . . . . . Kicked . | . . . . . . . . . Crushed . | . . . . . . . . . Highest Temperature 255 | 40 . 76 210 255 60 252 199 138 Average Temperature 63 | 17 . 31 64 156 20 78 86 72 Received Heat Transfer 1562 | . . 75 623 24 207 309 324 . Effects 1 | . . . 1 . . . . . Energy Bleed 1 | . . . 1 . . . . . Siege Activations . | . . . . . . . . . Robots Corrupted . | . . . . . . . . . Combat Hostiles . | . . . . . . . . . Parts Fried 1 | . . . . . 1 . . . Impact Corruptions . | . . . . . . . . . Robots Melted 1 | . . . 1 . . . . . Combat Hostiles 1 | . . . 1 . . . . . Parts Melted 7 | . . . 5 . 1 . . 1 Heat Transferred 6102 | 125 . 125 2150 296 1099 814 1443 50 Parts Sabotaged . | . . . . . . . . . Parts Stolen . | . . . . . . . . . Parts Stripped . | . . . . . . . . . Power Chain Reactions 2 | . . . . . 2 . . . Alert | -11 -10 -10 -9 -9 -8 -7 -6 -6 ------- Run | Yrd Mat Min Mat Min Mat Fac Fac Low Peak Influence 420 | 10 6 21 420 248 373 298 124 . Initial 163 | . 6 1 7 163 96 123 124 . Average 152 | 2 6 7 180 223 209 174 57 . Maximum Alert Level 2 | . . . 2 1 1 1 . . Low Security (%) 65 | 100 100 100 56 20 48 64 100 . Level 1 33 | . . . 40 79 51 35 . . Level 2 1 | . . . 3 . . . . . Level 3 . | . . . . . . . . . Level 4 . | . . . . . . . . . Level 5 . | . . . . . . . . . High Security . | . . . . . . . . . Max Security . | . . . . . . . . . Squads Dispatched 12 | . . . 3 . 5 4 . . Investigation 4 | . . . 1 . . 3 . . Extermination 1 | . . . . . . 1 . . Reinforcement 3 | . . . 2 . 1 . . . Assault . | . . . . . . . . . Garrison 4 | . . . . . 4 . . . Intercept . | . . . . . . . . . Searches Triggered . | . . . . . . . . . Construction Impeded . | . . . . . . . . . Haulers Reinforced . | . . . . . . . . . Active Scanning Responses . | . . . . . . . . . Cargo Convoy Interrupts . | . . . . . . . . . Stealth | -11 -10 -10 -9 -9 -8 -7 -6 -6 --------- Run | Yrd Mat Min Mat Min Mat Fac Fac Low Distress Signals 4 | . . . 2 . 1 1 . . Communications Jammed 3 | . . . . . . 3 . . Distress Signals 1 | . . . . . . 1 . . Times Spotted 81 | . . 4 33 6 14 17 3 4 Peak Tracking Total 6 | . . 4 6 6 4 3 3 4 Tactical Retreats 6 | . . . 2 . 3 1 . . Traps | -11 -10 -10 -9 -9 -8 -7 -6 -6 ------- Run | Yrd Mat Min Mat Min Mat Fac Fac Low Traps Triggered 4 | . . . 1 . . 3 . . Indirectly . | . . . . . . . . . Trap Hack Attempts . | . . . . . . . . . Triggered . | . . . . . . . . . Disarmed . | . . . . . . . . . Reprogrammed . | . . . . . . . . . Reused . | . . . . . . . . . Traps Extracted . | . . . . . . . . . Installed . | . . . . . . . . . Triggered . | . . . . . . . . . Machines | -11 -10 -10 -9 -9 -8 -7 -6 -6 ---------- Run | Yrd Mat Min Mat Min Mat Fac Fac Low Machines Disabled 1 | . . . . . . 1 . . Max in Single Turn 1 | . . . . . . 1 . . Machines Repaired . | . . . . . . . . . Machines Dismantled . | . . . . . . . . . Machines Sabotaged . | . . . . . . . . . Overloaded Fab Kills . | . . . . . . . . . Hacking | -11 -10 -10 -9 -9 -8 -7 -6 -6 --------- Run | Yrd Mat Min Mat Min Mat Fac Fac Low Machines Accessed 8 | . . . 3 . 1 4 . . Terminals 3 | . . . 1 . 1 1 . . Fabricators 1 | . . . . . . 1 . . Repair Stations 2 | . . . 1 . . 1 . . Recycling Units . | . . . . . . . . . Scanalyzers 1 | . . . 1 . . . . . Garrison Access 1 | . . . . . . 1 . . Total Hacks 29 | . . . 11 . 4 14 . . Successful 21 | . . . 8 . 3 10 . . Failed 8 | . . . 3 . 1 4 . . Catastrophic 1 | . . . . . . 1 . . Database Lockouts . | . . . . . . . . . Manual 1 | . . . . . . . 1 . Terminals 11 | . . . 4 . 4 3 . . Fabricators 3 | . . . . . . 3 . . Repair Stations 9 | . . . 4 . . 5 . . Recycling Units . | . . . . . . . . . Scanalyzers 3 | . . . 3 . . . . . Garrison Access 3 | . . . . . . 3 . . Terminal Hacks 7 | . . . 3 . 3 1 . . Record 3 | . . . 3 . . . . . Part Schematic 1 | . . . . . . 1 . . Scanalyzer Index 1 | . . . . . 1 . . . Transport Status 1 | . . . . . 1 . . . Zone Layout 1 | . . . . . 1 . . . Fabricator Hacks 3 | . . . . . . 3 . . Network Status 1 | . . . . . . 1 . . Load Schematic 1 | . . . . . . 1 . . Build 1 | . . . . . . 1 . . Repair Station Hacks 8 | . . . 3 . . 5 . . Scan Component 5 | . . . 2 . . 3 . . Repair 3 | . . . 1 . . 2 . . Recycling Unit Hacks . | . . . . . . . . . Scanalyzer 2 | . . . 2 . . . . . Insert Component 1 | . . . 1 . . . . . Analyze 1 | . . . 1 . . . . . Garrison Access Hacks 1 | . . . . . . 1 . . Unlock Access 1 | . . . . . . 1 . . Unauthorized Hacks . | . . . . . . . . . Terminals . | . . . . . . . . . Fabricators . | . . . . . . . . . Repair Stations . | . . . . . . . . . Recycling Units . | . . . . . . . . . Scanalyzers . | . . . . . . . . . Garrison Access . | . . . . . . . . . Data Cores Recovered . | . . . . . . . . . Used . | . . . . . . . . . Hacking Detections 6 | . . . 2 . 1 3 . . Full Trace Events 5 | . . . 2 . . 3 . . Feedback Events 1 | . . . 1 . . . . . Corruption 1 | . . . 1 . . . . . Feedback Blocked . | . . . . . . . . . Robot Schematics Acquired . | . . . . . . . . . Robots Built . | . . . . . . . . . Authchips . | . . . . . . . . . Time . | . . . . . . . . . Total Robot Build Rating . | . . . . . . . . . Part Schematics Acquired 2 | . . . 1 . . 1 . . Parts Built . | . . . . . . . . . Authchips . | . . . . . . . . . Time 95 | . . . . . . 95 . . Total Part Build Rating . | . . . . . . . . . Parts Repaired 3 | . . . 1 . . 2 . . Time 96 | . . . 38 . . 58 . . Parts Recycled . | . . . . . . . . . Recycled Matter . | . . . . . . . . . Retrieved Matter . | . . . . . . . . . Retrieved Components . | . . . . . . . . . Parts Scanalyzed 1 | . . . 1 . . . . . Part Schematics Acquired 1 | . . . 1 . . . . . Parts Damaged . | . . . . . . . . . Bothacking | -11 -10 -10 -9 -9 -8 -7 -6 -6 ------------ Run | Yrd Mat Min Mat Min Mat Fac Fac Low Used RIF Installer . | . . . . . . . . . Robots Hacked . | . . . . . . . . . Non-combat . | . . . . . . . . . Combat . | . . . . . . . . . Robot Hacks Applied . | . . . . . . . . . Relay Couplers Released . | . . . . . . . . . Fabnet Peak Effective % . | . . . . . . . . . Robots Rewired . | . . . . . . . . . Allies Hacked . | . . . . . . . . . Hacks Repelled . | . . . . . . . . . Allies | -11 -10 -10 -9 -9 -8 -7 -6 -6 -------- Run | Yrd Mat Min Mat Min Mat Fac Fac Low Total Allies . | . . . . . . . . . Largest Group . | . . . . . . . . . Highest-Rated Group . | . . . . . . . . . Highest-Rated Ally . | . . . . . . . . . Total Orders . | . . . . . . . . . Ally Attacks . | . . . . . . . . . Total Damage . | . . . . . . . . . Kills . | . . . . . . . . . Allies Corrupted . | . . . . . . . . . Allies Melted . | . . . . . . . . . Intel | -11 -10 -10 -9 -9 -8 -7 -6 -6 ------- Run | Yrd Mat Min Mat Min Mat Fac Fac Low Robot Analysis Total . | . . . . . . . . . Derelict Logs Recovered . | . . . . . . . . . Drone Launches . | . . . . . . . . . Drone Recoveries . | . . . . . . . . . Exploration | -11 -10 -10 -9 -9 -8 -7 -6 -6 ------------- Run | Yrd Mat Min Mat Min Mat Fac Fac Low Turns Passed 4039 | 93 73 44 1103 176 652 787 699 412 Spaces Moved 1645 | 50 46 14 382 103 272 278 292 208 Core 70 | 39 . . . . . . 31 . Treads 146 | 11 46 14 75 . . . . . Legs 1429 | . . . 307 103 272 278 261 208 Wheels . | . . . . . . . . . Hover . | . . . . . . . . . Flight . | . . . . . . . . . Fastest Speed 50 | 50 160 160 120 120 120 120 100 190 Average Speed 166 | 118 160 160 157 120 178 192 155 190 Slowest Speed 330 | 200 160 160 260 120 190 330 250 190 Overloaded Moves . | . . . . . . . . . Propulsion Burnouts . | . . . . . . . . . Robots Hopped . | . . . . . . . . . Cave-ins Triggered . | . . . . . . . . . Exploration Rate (%) 16 | 4 11 9 32 32 21 11 7 23 Regions Visited 8 Branch Regions 3 Pre-discovered Areas . | . . . . . . . . . Known Exits Taken . | . . . . . . . . . Unknown Exits Taken 8 | 1 1 1 1 1 1 1 1 . Scrap Searched 2 | . . . . 1 . . . 1 Spaces Dug . | . . . . . . . . . Terrain Destroyed 11 | . . . . . 10 . . 1 Melee . | . . . . . . . . . Projectile 1 | . . . . . . . . 1 AOE 10 | . . . . . 10 . . . Terrain Rammed . | . . . . . . . . . Walls Destroyed . | . . . . . . . . . Machines Disabled . | . . . . . . . . . Actions | -11 -10 -10 -9 -9 -8 -7 -6 -6 --------- Run | Yrd Mat Min Mat Min Mat Fac Fac Low Total 2484 | 72 46 21 676 134 365 455 495 220 Wait 396 | 3 . . 105 . 20 99 160 9 Move 1637 | 49 45 13 381 102 271 277 291 208 Hop . | . . . . . . . . . Pick Up 76 | 7 1 . 26 8 12 12 9 1 Fast Attach 17 | 3 . . 6 . 3 5 . . Attach 61 | 4 . . 23 5 7 10 12 . Detach . | . . . . . . . . . Swap 7 | . . . 2 . 2 3 . . Drop 34 | . . . 13 3 9 9 . . Fire 255 | 6 . 8 119 16 41 40 23 2 Melee 1 | . . . 1 . . . . . Ram . | . . . . . . . . . Kick . | . . . . . . . . . Crush . | . . . . . . . . . Escape Stasis . | . . . . . . . . . Rewire . | . . . . . . . . . Trap . | . . . . . . . . . Miscellaneous . | . . . . . . . . . Route ------- -11/Scrapyard -10/Materials -10/Mines -9/Materials -9/Mines -8/Materials -7/Factory (discovered 2 exits: *Fac / Gar) -6/Factory -6/Lower Caves History --------- Turn | Location | Event 25 | -11/Scrapyard | Discovered new exit (range 15) 94 | -11/Scrapyard | Entered Materials 154 | -10/Materials | Discovered new exit (range 6) 167 | -10/Materials | Entered Mines 175 | -10/Mines | Discovered new exit (range 9) 211 | -10/Mines | Entered Materials 211 | -9/Materials | Evolved 2 slots: Utility x2 304 | -9/Materials | Build established: Mutant 378 | -9/Materials | Repaired Imp. Terrain Scanner 492 | -9/Materials | Lost 5 parts (1n2u2w) 808 | -9/Materials | Build established: Scavenger-Mutant 1038 | -9/Materials | Lost 3 parts (1n1u1w) 1107 | -9/Materials | Lost 4 parts (1p1n2u) 1305 | -9/Materials | Discovered new exit (range 5) 1314 | -9/Materials | Entered Mines 1318 | -9/Mines | Met a Derelict bent on vengeance 1325 | -9/Mines | Core integrity fell below 50% 1381 | -9/Mines | Core integrity fell below 20% 1481 | -9/Mines | Discovered new exit (range 10) 1490 | -9/Mines | Entered Materials 1490 | -8/Materials | Evolved 2 slots: Utility x1, Weapon x1 1592 | -8/Materials | Garrison activated, responded to threat 1693 | -8/Materials | Garrison activated, responded to threat 2057 | -8/Materials | Build established: Scavenger-Gunner 2123 | -8/Materials | Discovered new exit (range 12) 2142 | -8/Materials | Entered Factory 2142 | -7/Factory | Evolved 2 slots: Power x1, Utility x1 2341 | -7/Factory | Identified exit to Garrison 2703 | -7/Factory | Repaired Imp. Light Cannon 2730 | -7/Factory | Repaired Aluminum Leg 2893 | -7/Factory | Discovered new exit (range 15) 2929 | -7/Factory | Entered another Factory area 2929 | -6/Factory | Evolved 2 slots: Propulsion x1, Utility x1 3134 | -6/Factory | Lost 11 parts (3p3n3u2w) 3444 | -6/Factory | Build established: Scavenger-Mutant 3445 | -6/Factory | Discovered new exit (range 14) 3628 | -6/Factory | Entered Lower Caves 3891 | -6/Lower Caves | Build established: Scavenger-Gunner 4040 | -6/Lower Caves | Self-destructed Last Messages --------------- 03584_ K-01 Serf collects debris. LOCATION=UNKNOWN GOAL=ESCAPE 03894_ Acquired 5 matter. 03904_ Acquired 4 matter. 03915_ Destroyed Wheel. 03915_ TF-IMQ(k) destroyed. 03922_ Acquired 13 matter. 03947_ Acquired 2 matter. 04019_ Searching scrap... 04019_ Found Thermic Laser. 04019_ Found Imp. Particle Charger. 04019_ Found Actuator Array. 04019_ Found Unknown Energy Gun. 04019_ Found 68 Matter. 04023_ Acquired Thermic Laser. 04024_ VTOL Module melted. 04024_ S-27 Virus destroyed. 04026_ Lgt. Ion Engine destroyed. 04026_ Particle Gun destroyed. Map ----- +----------------------------------------------------+ | ?????????????????????????????????????????????????? | | ?????????????????????????????????????????????????? | | ?????????????????????????????????????????????????? | | ?????????????????????????????????????????????????? | | ?????????????????????????????????????????????????? | | ????????????????????????????# ????###???????????? | | ???????????????????????????? ??## ####???????? | | ????????????????????????????? ### ??????## | | ?????????????????????????????? ?????# | | ??????????????????????????????? ?????# ? | | ????????????????????????? ????# ??### ?? | | ?????????????????????????# ??## #??# ??? | | ?????????????????????????# ## #?## #??? | | ???????????????????###???? #?# ##?? | | ??????????????????## ??????# #?# ##? | | ??????????????##### ???????# ### ## | | ??????????????? ????????# ## | | ???????????????# *% ?????????# | | ??????????????## #####????#### | | ????????? #### ????????## | | ????????? ?????????## ######## | | ?????????# ???????????# ##??????## | | ??????????# ???????????# ###??????## | | ???????????# #???????????# #"#??????## | | ??????????????# s ############# %##?????# | | ???????????????# ![ s@% % ## %##????## | | ???????????????# %!s %% % %## ##????# | | ???????????????# ############# ## ##???? | | ???????????????# ??####?## ####% ###?? | | ????????????? ???# ### #####! % #?? | | ?????????? ?????#% ##??# ##% #? | | ????????? ??????# %% ##?# ####?#% #? | | ????????? ???????## % % ### #?????# ### | | ??????????? ??????????## #??????##?# | | ??????????? ????????????## % % #######?????????# | | ?????????????????????????##### ##???????????????# | | ?????????????????????????????####????????????????? | | ?????????????????????????????????????????????????? | | ???????????????????????#?????????????????????????? | | ?????????????????????????????????????????????????? | | ?????????????????????????????????????????????????? | | ?????????????????????????????????????????????????? | | ?????????????????????????????????????????????????? | | ?????????????????????????????????????????????????? | | ?????????????????????????????????????????????????? | | ?????????????????????????????????????????????????? | | ?????????????????????????????????????????????????? | | ?????????????????????????????????????????????????? | | ?????????????????????????????????????????????????? | | ?????????????????????????????????????????????????? | +----------------------------------------------------+ Best States ------------- Heat Dissipation 51 Coolant Potential 65 Energy Generation 23 Energy Capacity 450 Matter Stores 400 Matter Capacity 400 Sight Range 16 Robot Scan Range 14 Terrain Scan Range 16 Terrain Scan Density 10 Jamming Range 12 EM Shielding 2 Armor Coverage 150 Weapon Shielding 66 Evasion (%) 65 Targeting Accuracy 5 Recoil Reduction 2 Item Schematics ----------------- Katana | -9/Materials | Scanalyzed Magnetic Acceleration Cannon | -7/Factory | Hacked Robot Schematics ------------------ None Fabricated ------------ Nothing Alien Tech Used ----------------- None Achievements -------------- None Challenges ------------ None Game ------ Seed AerolevSingularityArmor Manual? 0 Play Time 00:55:42 Cumulative 41.7 hours Start 2024.10.22 @ 19:55:10 End 2024.10.22 @ 21:47:16 Sessions 1 Manual Loads 0 Difficulty Rogue Special Mode None Game No. 74 Rogue 62 Adventurer 12 Explorer 0 Win Type - Total 0 Types 0/0/0/0/0/0/0/0/0 Lore% 9 Gallery% 22 Achievement% 19 Wizard Run 0 Options --------- Layout 0 ASCII 0 Keyboard 0 Movement Mouse Keybinds 0 Fullscreen 2 Font 18/SmallcapsGlow Map View 38x25 Zoom Use 99% Tactical HUD 1 Map Filters NONE Filters NONE Steam 1 RUN: d2776a01-4dbb-4863-abe3-47749cec2916